Cogmind - Beta 12 X4 @@@ ROGUE MODE // 2022.09.22 @ 21:05:23 Player: albenzo Result: Destroyed by as-51611 with Assembled Blade Performance ------------- Evolutions (0) 0 Regions Visited (4) 800 Robots Destroyed (27) 135 Value Destroyed (593) 593 Prototype IDs (0) 0 Alien Tech Used (0) 0 Bonus (0) 0 TOTAL SCORE: 1528 Bonus ------- None Cogmind --------- Core Integrity 0/250 Matter 300/300 Energy 82/100 System Corruption 0% Temperature Danger (464) Movement Core (400) Ox7 Location -9/Mines Parts ------- > --- POWER (1) -------- (None) > --- PROPULSION (2) --- (None) > --- UTILITY (2) ------ Heat Sink Large Storage Unit > --- WEAPON (2) ------- Particle Gun > --- INVENTORY (15) --- Light Treads Light Treads Light Treads Signal Interpreter Improved Terrain Scanner Seismic Detector Transmission Jammer Medium Armor Plating Medium Armor Plating Particle Gun Particle Gun Particle Cannon Particle Cannon Datajack Spear Peak State ------------ > --- POWER ------------ Ion Engine > --- PROPULSION ------- Light Treads Light Treads > --- UTILITY ---------- Large Storage Unit Seismic Detector > --- WEAPON ----------- Particle Gun Particle Gun > --- INVENTORY -------- Light Treads Light Treads Light Treads Light Treads Heat Sink Improved Terrain Scanner Seismic Detector Medium Armor Plating Medium Armor Plating Particle Gun Particle Gun Beam Cannon Beam Cannon Datajack [Rating: 11] Favorites ----------- Power Ion Engine Engine Ion Engine Propulsion Light Treads Treads Light Treads Utility Large Storage Unit Device Seismic Detector Storage Large Storage Unit Weapon Particle Gun Energy Gun Particle Gun Ballistic Gun Assault Rifle Special Melee Weapon Datajack Build | -11 -10 -10 -10 -9 ------- Run | Scr Mat Min Exi Min Slots Evolved . | . . . . . Power . | . . . . . Propulsion . | . . . . . Utility . | . . . . . Weapon . | . . . . . Parts Attached 37 | 7 27 2 . 1 Power 4 | 1 3 . . . Engine 4 | 1 3 . . . Core . | . . . . . Reactor . | . . . . . Propulsion 7 | 2 5 . . . Treads 7 | 2 5 . . . Leg . | . . . . . Wheel . | . . . . . Hover . | . . . . . Flight . | . . . . . Utility 14 | 2 9 2 . 1 Device 11 | 1 7 2 . 1 Storage 3 | 1 2 . . . Processor . | . . . . . Hackware . | . . . . . Protection . | . . . . . Artifact . | . . . . . Weapon 12 | 2 10 . . . Energy Gun 9 | 1 8 . . . Energy Cannon . | . . . . . Ballistic Gun 1 | 1 . . . . Ballistic Cannon . | . . . . . Launcher . | . . . . . Special Weapon . | . . . . . Impact Weapon . | . . . . . Slashing Weapon . | . . . . . Piercing Weapon . | . . . . . Special Melee Weapon 2 | . 2 . . . Unidentified Prototypes . | . . . . . Parts Lost 4 | . . . . 4 Power 1 | . . . . 1 Propulsion 2 | . . . . 2 Utility . | . . . . . Weapon 1 | . . . . 1 Highest Loss Streak 4 | . . . . 4 To Critical Strikes . | . . . . . Average Slot Usage (%) 99 | . 99 100 100 97 Engine 13 | . 13 14 14 12 Treads 27 | . 27 28 28 26 Device 14 | . 14 14 14 14 Storage 14 | . 14 14 14 14 Energy Gun 24 | . 23 28 28 28 Ballistic Gun 1 | . 2 . . . Special Melee Weapon 1 | . 1 . . . Naked Turns . | . . . . . Heaviest Build 32 | 15 32 32 32 32 Greatest Support 40 | 40 40 40 40 40 Greatest Overweight (x) 1 | . 1 . . . Average Overweight (x) . | . . . . . Largest Inventory Capacity 15 | 8 15 15 15 15 Average Capacity 13 | 7 13 15 15 15 Most Carried 15 | 8 15 15 15 15 Average Carried 13 | 4 13 15 15 14 Final Capacity 15 | 8 15 15 15 15 Final Carried 15 | 8 15 15 15 15 Class Distribution -------------------- 68% | Mutant 31% | Scavenger-Mutant Dominant Class ---------------- Mutant | -10/Materials Scavenger-Mutant | -10/Mines Scavenger-Mutant | -10/Exiles Scavenger-Mutant | -9/Mines Resources | -11 -10 -10 -10 -9 ----------- Run | Scr Mat Min Exi Min Matter Collected 656 | 259 367 30 . . Remotely . | . . . . . Salvage Created 839 | 68 672 39 . 60 Parts 58 | 11 39 5 . 3 Haulers Intercepted 2 | . 2 . . . Recyclers Shooed 1 | . 1 . . . Parts Field Recycled . | . . . . . Retrieved Matter . | . . . . . Parts Self-Destructed . | . . . . . Prevented . | . . . . . Kills | -11 -10 -10 -10 -9 ------- Run | Scr Mat Min Exi Min Combat Hostiles Destroyed 20 | . 15 3 . 2 Guns 18 | . 13 3 . 2 Classes Destroyed 9 | 1 6 . . 2 Builder 1 | . 1 . . . Tunneler 3 | 3 . . . . Hauler 2 | . 2 . . . Recycler 1 | . 1 . . . Watcher 1 | . 1 . . . Swarmer 6 | . 3 3 . . Grunt 12 | . 12 . . . Duelist 1 | . . . . 1 Assembled 1 | . . . . 1 Best Kill Streak 3 | 2 3 3 . 2 Combat Bots Only 3 | . 3 3 . 2 Max Kills in Single Turn 2 | 1 2 2 . 1 Gunslinging . | . . . . . Exploded . | . . . . . Melee . | . . . . . Uniques/NPCs Destroyed . | . . . . . Combat | -11 -10 -10 -10 -9 -------- Run | Scr Mat Min Exi Min Damage Taken 1101 | . 572 56 . 473 Core 276 | . 137 9 . 130 Absorbed by Shields . | . . . . . Core Remaining (%) 100 | 100 . . . . Volleys Fired 77 | 5 59 3 . 10 Largest 2 | 2 2 2 . 2 Hottest 130 | 70 130 130 . 130 Shots Fired 145 | 10 112 6 . 17 Gun 145 | 10 112 6 . 17 Cannon . | . . . . . Launcher . | . . . . . Special . | . . . . . Kinetic 25 | 5 20 . . . Thermal 120 | 5 92 6 . 17 Explosive . | . . . . . Electromagnetic . | . . . . . Robot Hit Streak 19 | 7 19 7 . 8 Robot Miss Streak 4 | 1 4 . . 3 Penetration Max . | . . . . . Secondary Targets 3 | . 1 1 . 1 Max Gunslinging Chain 1 | . 1 1 . 1 Shots Hit Robots 97 | 7 74 6 . 10 Core Hits 38 | 3 28 3 . 4 Critical Kills . | . . . . . Critical Parts Destroyed . | . . . . . Critical Strikes 9 | . 9 . . . Burn 9 | . 9 . . . Melee Attacks 2 | . 2 . . . Impact . | . . . . . Slashing . | . . . . . Piercing . | . . . . . Sneak Attacks 2 | . 2 . . . Combat Hostiles . | . . . . . Follow-up Attacks . | . . . . . Damage Inflicted 1385 | 87 1050 99 . 149 Guns 1385 | 87 1050 99 . 149 Cannons . | . . . . . Explosions . | . . . . . Melee . | . . . . . Ramming . | . . . . . Kinetic 211 | 37 174 . . . Thermal 1174 | 50 876 99 . 149 Explosive . | . . . . . Electromagnetic . | . . . . . Impact . | . . . . . Slashing . | . . . . . Piercing . | . . . . . Highest Corruption . | . . . . . Average Corruption . | . . . . . Corruption Purged . | . . . . . Corruption Blocked . | . . . . . Overload Shots . | . . . . . Overflow Damage . | . . . . . Projectiles . | . . . . . Explosions . | . . . . . Melee . | . . . . . Knockbacks . | . . . . . Impact . | . . . . . Kinetic . | . . . . . Secondary . | . . . . . Self-Inflicted Damage . | . . . . . Shots . | . . . . . Rammed . | . . . . . Targets Rammed . | . . . . . Kicked . | . . . . . Crushed . | . . . . . Highest Temperature 467 | 18 309 117 . 467 Average Temperature 108 | 9 97 59 . 281 Received Heat Transfer 520 | . 264 . . 256 Siege Activations . | . . . . . Robots Corrupted . | . . . . . Combat Hostiles . | . . . . . Parts Fried . | . . . . . Impact Corruptions . | . . . . . Robots Melted 2 | . 2 . . . Combat Hostiles 2 | . 2 . . . Parts Melted 8 | 2 5 . . 1 Heat Transferred 3663 | 148 2923 222 . 370 Parts Sabotaged . | . . . . . Parts Stolen . | . . . . . Parts Stripped . | . . . . . Power Chain Reactions . | . . . . . Missiles Intercepted . | . . . . . Alert | -11 -10 -10 -10 -9 ------- Run | Scr Mat Min Exi Min Peak Influence 232 | 15 232 82 . 30 Initial 12 | . 9 12 . . Average 91 | 4 105 79 . . Maximum Alert Level 1 | . 1 . . . Low Security (%) 94 | 100 93 100 . 100 Level 1 5 | . 6 . . . Level 2 . | . . . . . Level 3 . | . . . . . Level 4 . | . . . . . Level 5 . | . . . . . High Security . | . . . . . Max Security . | . . . . . Squads Dispatched 4 | . 3 . . 1 Investigation 2 | . 1 . . 1 Extermination . | . . . . . Reinforcement 2 | . 2 . . . Assault . | . . . . . Garrison . | . . . . . Intercept . | . . . . . Searches Triggered . | . . . . . Construction Impeded . | . . . . . Haulers Reinforced . | . . . . . Active Scanning Responses . | . . . . . Cargo Convoy Interrupts . | . . . . . Stealth | -11 -10 -10 -10 -9 --------- Run | Scr Mat Min Exi Min Distress Signals 2 | . 2 . . . Communications Jammed . | . . . . . Distress Signals . | . . . . . Times Spotted 36 | . 25 3 . 8 Peak Tracking Total 7 | . 3 3 . 7 Tactical Retreats 2 | . 2 . . . Traps | -11 -10 -10 -10 -9 ------- Run | Scr Mat Min Exi Min Traps Triggered 3 | . 3 . . . Indirectly . | . . . . . Trap Hack Attempts 31 | . 31 . . . Triggered . | . . . . . Disarmed 1 | . 1 . . . Reprogrammed 1 | . 1 . . . Reused . | . . . . . Traps Extracted . | . . . . . Installed . | . . . . . Triggered . | . . . . . Machines | -11 -10 -10 -10 -9 ---------- Run | Scr Mat Min Exi Min Machines Disabled . | . . . . . Max in Single Turn . | . . . . . Machines Sabotaged . | . . . . . Overloaded Fab Kills . | . . . . . Hacking | -11 -10 -10 -10 -9 --------- Run | Scr Mat Min Exi Min Machines Accessed 11 | . 9 . 1 1 Terminals 6 | . 6 . . . Fabricators . | . . . . . Repair Stations 1 | . 1 . . . Recycling Units 2 | . 2 . . . Scanalyzers . | . . . . . Garrison Access . | . . . . . Total Hacks 34 | . 32 . 1 1 Successful 17 | . 15 . 1 1 Failed 17 | . 17 . . . Catastrophic 6 | . 6 . . . Database Lockouts . | . . . . . Manual 26 | . 26 . . . Terminals 24 | . 24 . . . Fabricators . | . . . . . Repair Stations 2 | . 2 . . . Recycling Units 6 | . 6 . . . Scanalyzers . | . . . . . Garrison Access . | . . . . . Terminal Hacks 9 | . 7 . 1 1 Record 1 | . . . 1 . Part Schematic 1 | . 1 . . . Robot Analysis 3 | . 3 . . . Open Door 1 | . . . . 1 Terminal Index 1 | . 1 . . . Alert Level 1 | . 1 . . . Locate Traps 1 | . 1 . . . Fabricator Hacks . | . . . . . Repair Station Hacks 1 | . 1 . . . Scan Component 1 | . 1 . . . Recycling Unit Hacks 1 | . 1 . . . Retrieve Components 1 | . 1 . . . Scanalyzer . | . . . . . Garrison Access Hacks . | . . . . . Unauthorized Hacks 6 | . 6 . . . Terminals 3 | . 3 . . . Assimilate 1 | . 1 . . . Botnet 1 | . 1 . . . Operators 1 | . 1 . . . Fabricators . | . . . . . Repair Stations . | . . . . . Recycling Units 3 | . 3 . . . Reject 1 | . 1 . . . Mask 2 | . 2 . . . Scanalyzers . | . . . . . Garrison Access . | . . . . . Data Cores Recovered . | . . . . . Used . | . . . . . Hacking Detections 9 | . 9 . . . Full Trace Events . | . . . . . Feedback Events . | . . . . . Feedback Blocked . | . . . . . Robot Schematics Acquired . | . . . . . Robots Built . | . . . . . Authchips . | . . . . . Time . | . . . . . Total Robot Build Rating . | . . . . . Part Schematics Acquired 1 | . 1 . . . Parts Built . | . . . . . Authchips . | . . . . . Time . | . . . . . Total Part Build Rating . | . . . . . Parts Repaired . | . . . . . Time . | . . . . . Parts Recycled . | . . . . . Recycled Matter . | . . . . . Retrieved Matter . | . . . . . Retrieved Components 9 | . 9 . . . Parts Scanalyzed . | . . . . . Part Schematics Acquired . | . . . . . Parts Damaged . | . . . . . Bothacking | -11 -10 -10 -10 -9 ------------ Run | Scr Mat Min Exi Min Used RIF Installer . | . . . . . Robots Hacked 1 | . 1 . . . Non-combat 1 | . 1 . . . Combat . | . . . . . Robot Hacks Applied 1 | . 1 . . . parse_system 1 | . 1 . . . Relay Couplers Released . | . . . . . Fabnet Peak Effective % . | . . . . . Robots Rewired . | . . . . . Allies Hacked . | . . . . . Hacks Repelled . | . . . . . Allies | -11 -10 -10 -10 -9 -------- Run | Scr Mat Min Exi Min Total Allies . | . . . . . Largest Group . | . . . . . Highest-Rated Group . | . . . . . Highest-Rated Ally . | . . . . . Total Orders . | . . . . . Ally Attacks . | . . . . . Total Damage . | . . . . . Kills . | . . . . . Allies Corrupted . | . . . . . Allies Melted . | . . . . . Intel | -11 -10 -10 -10 -9 ------- Run | Scr Mat Min Exi Min Robot Analysis Total 3 | . 3 . . . Derelict Logs Recovered 2 | . . 1 . 1 Drone Launches . | . . . . . Drone Recoveries . | . . . . . Exploration | -11 -10 -10 -10 -9 ------------- Run | Scr Mat Min Exi Min Turns Passed 2448 | 138 1712 216 268 114 Spaces Moved 1258 | 68 842 128 168 52 Core 3 | 3 . . . . Treads 1255 | 65 842 128 168 52 Legs . | . . . . . Wheels . | . . . . . Hover . | . . . . . Flight . | . . . . . Fastest Speed 50 | 50 160 160 160 160 Average Speed 159 | 155 160 160 160 160 Slowest Speed 240 | 160 240 160 160 160 Overloaded Moves . | . . . . . Propulsion Burnouts . | . . . . . Robots Hopped . | . . . . . Cave-ins Triggered . | . . . . . Exploration Rate (%) 41 | 5 99 33 56 13 Regions Visited 4 Branch Regions 3 Pre-discovered Areas . | . . . . . Known Exits Taken . | . . . . . Unknown Exits Taken 4 | 1 1 1 1 . Scrap Searched . | . . . . . Spaces Dug . | . . . . . Terrain Destroyed . | . . . . . Melee . | . . . . . Projectile . | . . . . . AOE . | . . . . . Terrain Rammed . | . . . . . Walls Destroyed . | . . . . . Machines Disabled . | . . . . . Actions | -11 -10 -10 -10 -9 --------- Run | Scr Mat Min Exi Min Total 1553 | 87 1100 132 167 67 Wait 93 | . 93 . . . Move 1254 | 67 841 127 167 52 Hop . | . . . . . Pick Up 31 | 8 21 . . 2 Fast Attach 13 | 7 6 . . . Attach . | . . . . . Detach . | . . . . . Swap 24 | . 21 2 . 1 Drop 28 | . 26 . . 2 Fire 77 | 5 59 3 . 10 Melee 2 | . 2 . . . Ram . | . . . . . Kick . | . . . . . Crush . | . . . . . Escape Stasis . | . . . . . Rewire . | . . . . . Trap 31 | . 31 . . . Miscellaneous . | . . . . . Route ------- -11/Scrapyard -10/Materials (discovered 5 exits: [*Mat x3] / [*Min x2]) -10/Mines -10/Exiles -9/Mines History --------- Turn | Location | Event 41 | -11/Scrapyard | Discovered new exit (range 13) 139 | -11/Scrapyard | Entered Materials 306 | -10/Materials | Build established: Mutant 331 | -10/Materials | Discovered new exit (range 14) 767 | -10/Materials | Discovered new exit (range 16) 921 | -10/Materials | Core integrity fell below 50% 1072 | -10/Materials | Discovered new exit (range 16) 1143 | -10/Materials | Discovered new exit (range 14) 1325 | -10/Materials | Discovered new exit (range 8) 1851 | -10/Materials | Entered Mines 1911 | -10/Mines | Learned location of 1 exit from Materials 1940 | -10/Mines | Build established: Scavenger-Mutant 2060 | -10/Mines | Deemed a non-threat by the Exiles lab entrance 2060 | -10/Mines | Discovered new exit (range 5) 2067 | -10/Mines | Entered Exiles 2067 | -10/Exiles | Found Exiles lab abandoned 2317 | -10/Exiles | Discovered new exit (range 14) 2335 | -10/Exiles | Entered Mines 2337 | -9/Mines | Learned Materials trap positions 2360 | -9/Mines | Met a Derelict shopkeep closing up shop 2384 | -9/Mines | Assembled infested the area 2389 | -9/Mines | Assisted by a Guerilla fighting off Assembled 2447 | -9/Mines | Core integrity fell below 20% 2449 | -9/Mines | Destroyed by as-51611 with Assembled Blade Last Messages --------------- 02369_ Dropped Mining Claw. 02370_ Acquired Spear. 02372_ Dropped Med. Armor Plating. 02373_ Acquired Transmission Jammer. 02384_ ALERT: Infestation in the mines, dispatching Demolisher response squad. 02389_ A derelict emerges from the shadows: "You need to get out of here! I've been tracking a group of Assembled to figure out where they're coming from, and they're closing on this area, come on!" 02429_ as-71448 destroyed. 02429_ Switching to secondary target: L-31 Rogue. 02433_ Lgt. Treads destroyed. 02435_ Destroyed Asb. F-torch. 02438_ Destroyed Melee Analysis Suite. 02438_ Ion Engine destroyed. 02441_ Particle Gun destroyed. 02444_ Lgt. Treads destroyed. 02446_ Imp. Aluminum Leg melted. 02446_ L-31 Rogue destroyed. 02448_ as-03237 destroyed. Map ----- +----------------------------------------------------+ | ?????????????????????????????????????????????????? | | ?????????????????????????????????????????????????? | | ?????????????????????????????????????????????????? | | ?????????????????????????????????????????????????? | | ?????????????????????????????????????????????????? | | ?????????????????????????????????????????????????? | | ?????????????????????????????????????????????????? | | ?????????????????????????????????????????????????? | | ?????????????????????????????????????????????????? | | ?????????????????????????????????????????????????? | | ??????????????????###????????????????????????????? | | ??????????????????# ##??????????????????????????? | | ??????????????????# ##?????????????????????????? | | ??????????????????# ##????????????????????????? | | ??????????????????# ##???????????????????????? | | ???????????????????# ##??????????????????????? | | ????????????????????# #####??????????????????? | | ????????????????????# ##?????????????????? | | ??????????????####### #????=#???????????? | | ?????????????##""## ### |#???????????? | | ?????????????#"!! # # #????????????? | | ?????????????#"/ ## # #????????????? | | ?????????????#" / ## %####### ##????????????? | | ?????????????#"!] #X ## ga #?????????????????????? | | ?????????????##""## # !%%a#?????????????????????? | | ??????????????####### g=@##?????????????????????? | | ????????????????????# ###??????????????????????? | | ????????????????????## #????????????????????????? | | ?????????????????????# #????????????????????????? | | ?????????????????????# #????????????????????????? | | ????????????????????## #????????????????????????? | | ??????????????????### #????????????????????????? | | ???????? ## #????????????????????????? | | ?????????# #????????????????????????? | | ?????????# ## ## ##????????????????????????? | | ?????????????## #?## #?????????????????????????? | | ??????????????####???# #?????????????????????????? | | ?????????????????????# #?????????????????????????? | | ?????????????????????# #?????????????????????????? | | ?????????????????????# #?????????????????????????? | | ?????????????????????# #?????????????????????????? | | ?????????????????????# ??????????????????????????? | | ?????????????????????# ??????????????????????????? | | ?????????????????????? ??????????????????????????? | | ?????????????????????? ??????????????????????????? | | ?????????????????????? ??????????????????????????? | | ?????????????????????? ??????????????????????????? | | ?????????????????????? ??????????????????????????? | | ?????????????????????????????????????????????????? | | ?????????????????????????????????????????????????? | +----------------------------------------------------+ Best States ------------- Heat Dissipation 35 Energy Generation 10 Energy Capacity 250 Matter Stores 300 Matter Capacity 300 Sight Range 16 Terrain Scan Density 10 Evasion (%) 40 Recoil Reduction 2 Item Schematics ----------------- Hcp. Storage Unit | -10/Materials | Hacked Robot Schematics ------------------ None Fabricated ------------ Nothing Alien Tech Used ----------------- None Achievements -------------- None Challenges ------------ None Game ------ Seed SpacefoldSignalMachine Manual? 0 Play Time 00:19:55 Cumulative 76.8 hours Start 2022.09.22 @ 20:45:29 End 2022.09.22 @ 21:05:23 Sessions 1 Manual Loads 0 Difficulty Rogue Special Mode None Game No. 64 Rogue 64 Adventurer 0 Explorer 0 Win Type - Total 3 Types 3/0/0/0/0/0/0/0/0 Lore% 59 Gallery% 59 Achievement% 52 Wizard Run 0 Options --------- ASCII 0 Keyboard 1 Movement Vi Keybinds 0 Fullscreen 2 Font 24/Proggy Map View 76x50 Tactical HUD 1 Map Filters NONE Filters NONE Steam 1 RUN: 03b0a9cd-db6a-4466-9626-cc85e51472f3